fUSD/lending_fUSD_20240615
["ID","MTS","AMOUNT","RATE_DAILY","PERIOD"]
[329539856,1718422296160,-500.0,0.00025205,3]
[329539857,1718422296175,-550.5,0.00025205,3]
[329539858,1718422296202,-500.0,0.00025205,3]
[329539859,1718422296242,-500.0,0.00025205,3]
[329539860,1718422296268,-573.92,0.00025205,3]
[329539861,1718422296297,-500.0,0.00025205,3]
[329539862,1718422296312,-660.95,0.00025205,3]
[329539863,1718422296364,-500.0,0.00025205,3]
[329539864,1718422296381,-520.26856695,0.00025205,3]
[329539865,1718422296402,-1000.0,0.00025205,2]
[329539866,1718422296416,-165.82648826,0.0002523,2]
[329539867,1718422296428,-953.05,0.00025267,2]
[329539868,1718422296452,-162.49514179,0.00025296,2]
[329539869,1718422296475,-266.88906681,0.00025299,2]
[329539870,1718422296486,-150.0,0.00025315,2]
[329539871,1718422296500,-150.0,0.00025315,2]
[329539872,1718422296521,-150.0,0.00025315,2]
[329539873,1718422296543,-526.95,0.00025315,2]
[329539874,1718422296555,-423.1,0.00025315,2]
[329539875,1718422296567,-305.32,0.00025315,2]
[329539876,1718422296578,-150.0,0.00025315,2]
[329539877,1718422296602,-150.0,0.00025315,2]
[329539878,1718422296621,-353.61,0.00025315,2]
[329539879,1718422296648,-150.0,0.00025315,2]
[329539880,1718422296676,-150.0,0.00025315,2]
[329539881,1718422296691,-526.95,0.00025315,2]
[329539882,1718422296717,-150.0,0.00025315,2]
[329539883,1718422296731,-150.0,0.00025315,2]
[329539884,1718422296759,-150.0,0.00025315,2]
[329539885,1718422296785,-353.81,0.00025315,2]
[329539886,1718422296797,-164.38,0.00025315,2]
[329539887,1718422296809,-423.1,0.00025315,2]
[329539888,1718422296823,-423.1,0.00025315,2]
[329539889,1718422296839,-150.0,0.00025315,2]
[329539890,1718422296853,-526.95,0.00025315,2]
[329539891,1718422296866,-150.0,0.00025315,2]
[329539892,1718422296876,-150.0,0.00025315,2]
[329539893,1718422296926,-300.0,0.00025315,2]
[329539894,1718422296972,-164.38,0.00025315,2]
[329539895,1718422296988,-150.0,0.00025315,2]
[329539896,1718422297018,-150.0,0.00025315,2]
[329539897,1718422297046,-353.81,0.00025315,2]
[329539898,1718422297064,-150.0,0.00025315,2]
[329539899,1718422297079,-1050.55,0.00025315,2]
[329539900,1718422297093,-423.1,0.00025315,2]
[329539901,1718422297110,-150.0,0.00025315,2]
[329539902,1718422297126,-300.0,0.00025315,2]
[329539903,1718422297137,-150.0,0.00025315,2]
[329539904,1718422297150,-526.95,0.00025315,2]
[329539905,1718422297161,-150.0,0.00025315,2]
[329539906,1718422297172,-150.0,0.00025315,2]
[329539907,1718422297208,-150.0,0.00025315,2]
[329539908,1718422297228,-423.1,0.00025315,2]
[329539909,1718422297240,-353.81,0.00025315,2]
[329539910,1718422297252,-164.38,0.00025315,2]
[329539911,1718422297264,-150.0,0.00025315,2]
[329539912,1718422297275,-150.0,0.00025315,2]
[329539913,1718422297291,-150.0,0.00025315,2]
[329539914,1718422297302,-526.95,0.00025315,2]
[329539915,1718422297324,-843.08,0.00025315,2]
[329539916,1718422297335,-353.81,0.00025315,2]
[329539917,1718422297362,-164.38,0.00025315,2]
[329539918,1718422297378,-150.0,0.00025315,2]
[329539919,1718422297408,-150.0,0.00025315,2]
[329539920,1718422297468,-422.68,0.00025315,2]
[329539921,1718422297482,-150.0,0.00025315,2]
[329539922,1718422297495,-150.0,0.00025315,2]
[329539923,1718422297527,-150.0,0.00025315,2]
[329539924,1718422297538,-163.46,0.00025315,2]
[329539925,1718422297555,-526.95,0.00025315,2]
[329539926,1718422297568,-353.81,0.00025315,2]
[329539927,1718422297580,-164.38,0.00025315,2]
[329539928,1718422297591,-384.09,0.00025315,2]
[329539929,1718422297603,-353.81,0.00025315,2]
[329539930,1718422297616,-423.1,0.00025315,2]
[329539931,1718422297631,-150.0,0.00025315,2]
[329539932,1718422297643,-526.95,0.00025315,2]
[329539933,1718422297657,-150.0,0.00025315,2]
[329539934,1718422297673,-526.95,0.00025315,2]
[329539935,1718422297690,-423.1,0.00025315,2]
[329539936,1718422297701,-150.0,0.00025315,2]
[329539937,1718422297713,-150.0,0.00025315,2]
[329539938,1718422297728,-353.81,0.00025315,2]
[329539939,1718422297745,-150.0,0.00025315,2]
[329539940,1718422297756,-164.38,0.00025315,2]
[329539941,1718422297789,-423.1,0.00025315,2]
[329539942,1718422297815,-526.95,0.00025315,2]
[329539943,1718422297829,-150.0,0.00025315,2]
[329539944,1718422297842,-164.38,0.00025315,2]
[329539945,1718422297853,-353.81,0.00025315,2]
[329539946,1718422297864,-150.0,0.00025315,2]
[329539947,1718422297876,-150.0,0.00025315,2]
[329539948,1718422297894,-353.81,0.00025315,2]
[329539949,1718422297915,-150.0,0.00025315,2]
[329539950,1718422297928,-164.38,0.00025315,2]
[329539951,1718422297942,-150.0,0.00025315,2]
[329539952,1718422297958,-423.1,0.00025315,2]
[329539953,1718422297971,-526.95,0.00025315,2]
[329539954,1718422297984,-423.1,0.00025315,2]
[329539955,1718422297996,-164.38,0.00025315,2]
[329539956,1718422298008,-150.0,0.00025315,2]
[329539957,1718422298020,-353.81,0.00025315,2]
[329539958,1718422298033,-526.95,0.00025315,2]
[329539959,1718422298047,-150.0,0.00025315,2]
[329539960,1718422298059,-150.0,0.00025315,2]
[329539961,1718422298072,-164.38,0.00025315,2]
[329539962,1718422298083,-353.81,0.00025315,2]
[329539963,1718422298097,-164.38,0.00025315,2]
[329539964,1718422298111,-845.72,0.00025315,2]
[329539965,1718422298126,-150.0,0.00025315,2]
[329539966,1718422298139,-353.81,0.00025315,2]
[329539967,1718422298166,-164.38,0.00025315,2]
[329539968,1718422298189,-1053.14,0.00025315,2]
[329539969,1718422298227,-423.1,0.00025315,2]
[329539970,1718422298272,-164.38,0.00025315,2]
[329539971,1718422298300,-150.0,0.00025315,2]
[329539972,1718422298326,-353.81,0.00025315,2]
[329539973,1718422298364,-150.0,0.00025315,2]
[329539974,1718422298379,-423.1,0.00025315,2]
[329539975,1718422298398,-164.38,0.00025315,2]
[329539976,1718422298415,-315.3,0.00025315,2]
[329539977,1718422298440,-150.0,0.00025315,2]
[329539978,1718422298453,-150.0,0.00025315,2]
[329539979,1718422298466,-526.95,0.00025315,2]
[329539980,1718422298500,-353.81,0.00025315,2]
[329539981,1718422298548,-526.95,0.00025315,2]
[329539982,1718422298568,-164.38,0.00025315,2]
[329539983,1718422298582,-353.81,0.00025315,2]
[329539984,1718422298631,-196.41,0.00025315,2]
[329539985,1718422298652,-341.63,0.00025315,2]
[329539986,1718422298663,-526.95,0.00025315,2]
[329539987,1718422298674,-164.38,0.00025315,2]
[329539988,1718422298717,-353.81,0.00025315,2]
[329539989,1718422298737,-300.0,0.00025315,2]
[329539990,1718422298754,-164.38,0.00025315,2]
[329539991,1718422298776,-150.0,0.00025315,2]
[329539992,1718422298790,-164.38,0.00025315,2]
[329539993,1718422298809,-164.38,0.00025315,2]
[329539994,1718422298838,-164.38,0.00025315,2]
[329539995,1718422298851,-164.38,0.00025315,2]
[329539996,1718422298868,-164.38,0.00025315,2]
[329539997,1718422298906,-4723.91326157,0.00025334,2]
[329539998,1718422298932,-22761.27097079,0.00025334,2]
[329539999,1718422298944,-155.66912299,0.00025343,2]
[329540000,1718422298966,-266.88906681,0.00025367,2]
[329540001,1718422298978,-613.3174936,0.00025419,2]
[329540002,1718422298995,-258.85803751,0.00025426,2]
[329540003,1718422299008,-153.68492921,0.00025436,2]
[329540004,1718422299028,-165.82648826,0.00025447,2]
[329540005,1718422299047,-528.37,0.00025479,3]
[329540006,1718422299061,-500.0,0.00025479,3]
[329540007,1718422299110,-500.0,0.00025479,3]
[329540008,1718422299145,-500.0,0.00025479,3]
[329540009,1718422299174,-569.97092101,0.00025479,3]
[329540010,1718422299189,-289.89703287,0.00025479,3]
[329540011,1718422299212,-500.0,0.00025479,3]
[329540012,1718422299233,-991.82,0.00025479,3]
[329540013,1718422299268,-500.0,0.00025479,3]
[329540014,1718422299285,-510.9,0.00025479,3]
[329540015,1718422299331,-500.0,0.00025479,3]
[329540016,1718422299345,-500.0,0.00025479,3]
[329540017,1718422299384,-500.0,0.00025479,3]
[329540018,1718422299398,-610.67,0.00025479,3]
[329540019,1718422299413,-500.0,0.00025479,3]
[329540020,1718422299431,-500.0,0.00025479,3]
[329540021,1718422299443,-666.98,0.00025479,3]
[329540022,1718422299459,-500.0,0.00025479,3]
[329540023,1718422299489,-551.87,0.00025479,3]
[329540024,1718422299502,-267.99707681,0.00025479,3]
[329540025,1718422299515,-500.0,0.00025479,3]
[329540026,1718422299529,-611.68,0.00025479,3]
[329540027,1718422299564,-500.0,0.00025479,3]
[329540028,1718422299576,-1146.01,0.00025479,3]
[329540029,1718422299590,-2401.32,0.00025479,3]
[329540030,1718422299602,-500.0,0.00025479,3]
[329540031,1718422299628,-500.0,0.00025479,3]
[329540032,1718422299645,-500.0,0.00025479,3]
[329540033,1718422299668,-997.37,0.00025479,3]
[329540034,1718422299679,-1854.19,0.00025479,3]
[329540035,1718422299713,-500.0,0.00025479,3]
[329540036,1718422299724,-1801.0,0.00025479,3]
[329540037,1718422299739,-414.5,0.00025479,3]
[329540038,1718422299758,-1043.52,0.00025479,3]
[329540039,1718422299770,-500.0,0.00025479,3]
[329540040,1718422299784,-1221.78,0.00025479,3]
[329540041,1718422299798,-652.52,0.00025479,3]
[329540042,1718422299810,-691.66,0.00025479,3]
[329540043,1718422299822,-608.39,0.00025479,3]
[329540044,1718422299835,-811.04,0.00025479,3]
[329540045,1718422299846,-592.9,0.00025479,3]
[329540046,1718422299859,-500.0,0.00025479,3]
[329540047,1718422299882,-500.0,0.00025479,3]
[329540048,1718422299893,-500.0,0.00025479,3]
[329540049,1718422299920,-500.0,0.00025479,3]
[329540050,1718422299937,-1689.02,0.00025479,3]
[329540051,1718422299956,-500.0,0.00025479,3]
[329540052,1718422299968,-544.26,0.00025479,3]
[329540053,1718422299982,-500.0,0.00025479,3]
[329540054,1718422299994,-500.0,0.00025479,3]
[329540055,1718422300011,-1062.12,0.00025479,3]
[329540056,1718422300024,-1798.46,0.00025479,3]
[329540057,1718422300045,-6430.71,0.00025479,3]
[329540058,1718422300063,-500.0,0.00025479,3]
[329540059,1718422300080,-500.0,0.00025479,3]
[329540060,1718422300090,-500.0,0.00025479,3]
[329540061,1718422300122,-500.0,0.00025479,3]
[329540062,1718422300136,-208.04,0.00025479,3]
[329540063,1718422300153,-500.0,0.00025479,3]
[329540064,1718422300216,-769.63,0.00025479,3]
[329540065,1718422300261,-706.02,0.00025479,3]
[329540066,1718422300285,-1384.1,0.00025479,3]
[329540067,1718422300313,-500.0,0.00025479,3]
[329540068,1718422300329,-500.0,0.00025479,3]
[329540069,1718422300343,-500.0,0.00025479,3]
[329540070,1718422300357,-550.5,0.00025479,3]
[329540071,1718422300380,-500.0,0.00025479,3]
[329540072,1718422300416,-500.0,0.00025479,3]
[329540073,1718422300431,-573.92,0.00025479,3]
[329540074,1718422300477,-500.0,0.00025479,3]
[329540075,1718422300496,-660.95,0.00025479,3]
[329540076,1718422300524,-500.0,0.00025479,3]
[329540077,1718422300536,-152.09,0.00025499,2]
[329540078,1718422300548,-152.51,0.00025499,2]
[329540079,1718422300570,-449.0,0.000255,2]
[329540080,1718422300601,-510.4,0.000255,2]
[329540081,1718422300622,-711.0,0.000255,2]
[329540082,1718422300647,-165.82648826,0.00025511,2]
[329540083,1718422300661,-166.08083695,0.00025515,2]
[329540084,1718422300689,-153.68492921,0.00025528,2]
[329540085,1718422300704,-165.82648826,0.00025546,2]
[329540086,1718422300737,-155.39020396,0.00025547,2]
[329540087,1718422300761,-906.03,0.00025554,3]
[329540088,1718422300818,-296.264071,0.00025555,7]
[329540089,1718422300862,-291.28944,0.00025555,2]
[329540090,1718422300876,-160.946792,0.00025555,2]
[329540091,1718422300891,-190.010246,0.00025555,2]
[329540092,1718422300917,-179.169007,0.00025555,2]
[329540093,1718422300929,-554.855379,0.00025555,2]
[329540094,1718422300954,-418.75057,0.00025555,2]
[329540095,1718422300970,-172.093103,0.00025555,2]
[329540096,1718422301021,-187.272331,0.00025555,2]
[329540097,1718422301033,-162.398927,0.00025555,2]
[329540098,1718422301045,-232.45683,0.00025555,2]
[329540099,1718422301058,-150.066601,0.00025555,2]
[329540100,1718422301082,-324.925224,0.00025555,2]
[329540101,1718422301093,-187.258411,0.00025555,2]
[329540102,1718422301104,-1430.506439,0.00025555,2]
[329540103,1718422301265,-171.375081,0.00025555,2]
[329540104,1718422301281,-196.122393,0.00025555,2]
[329540105,1718422301291,-487.387838,0.00025555,2]
[329540106,1718422301310,-424.774087,0.00025555,2]
[329540107,1718422301326,-196.122393,0.00025555,2]
[329540108,1718422301339,-150.0,0.00025585,2]
[329540109,1718422301357,-613.3174936,0.00025586,2]
[329540110,1718422301392,-154.66346707,0.00025596,2]
[329540111,1718422301408,-155.57352554,0.00025621,2]
[329540112,1718422301432,-6824.48538974,0.00025641,2]
[329540113,1718422301445,-154.66346707,0.00025659,2]
[329540114,1718422301476,-504.85141881,0.0002567,2]
[329540115,1718422301489,-258.85803751,0.00025676,2]
[329540116,1718422301502,-155.38938029,0.00025718,2]
[329540117,1718422301516,-258.85803751,0.00025719,2]
[329540118,1718422301527,-417.67,0.00025737,2]
[329540119,1718422301545,-266.88906681,0.00025742,2]
[329540120,1718422301562,-266.88906681,0.00025747,2]
[329540121,1718422301594,-167.04462255,0.00025751,2]
[329540122,1718422301607,-528.37,0.00025753,3]
[329540123,1718422301635,-500.0,0.00025753,3]
[329540124,1718422301685,-500.0,0.00025753,3]
[329540125,1718422301718,-500.0,0.00025753,3]
[329540126,1718422301771,-643.18564003,0.00025753,3]
[329540127,1718422301796,-991.82,0.00025753,3]
[329540128,1718422301829,-302.84997423,0.00025753,3]
[329540129,1718422301841,-510.9,0.00025753,3]
[329540130,1718422301852,-474.69922953,0.00025753,3]
[329540131,1718422301866,-500.0,0.00025753,3]
[329540132,1718422301880,-500.0,0.00025753,3]
[329540133,1718422301892,-610.67,0.00025753,3]
[329540134,1718422301915,-500.0,0.00025753,3]
[329540135,1718422301928,-500.0,0.00025753,3]
[329540136,1718422301941,-666.98,0.00025753,3]
[329540137,1718422301953,-500.0,0.00025753,3]
[329540138,1718422301975,-551.87,0.00025753,3]
[329540139,1718422301992,-500.0,0.00025753,3]
[329540140,1718422302007,-611.68,0.00025753,3]
[329540141,1718422302029,-500.0,0.00025753,3]
[329540142,1718422302052,-1146.01,0.00025753,3]
[329540143,1718422302074,-2401.32,0.00025753,3]
[329540144,1718422302089,-473.57357364,0.00025753,3]
[329540145,1718422302116,-500.0,0.00025753,3]
[329540146,1718422302139,-500.0,0.00025753,3]
[329540147,1718422302179,-997.37,0.00025753,3]
[329540148,1718422302193,-1854.19,0.00025753,3]
[329540149,1718422302214,-500.0,0.00025753,3]
[329540150,1718422302237,-1801.0,0.00025753,3]
[329540151,1718422302257,-1043.52,0.00025753,3]
[329540152,1718422302297,-500.0,0.00025753,3]
[329540153,1718422302348,-1221.78,0.00025753,3]
[329540154,1718422302383,-652.52,0.00025753,3]
[329540155,1718422302397,-691.66,0.00025753,3]
[329540156,1718422302410,-608.39,0.00025753,3]
[329540157,1718422302444,-811.04,0.00025753,3]
[329540158,1718422302463,-592.9,0.00025753,3]
[329540159,1718422302485,-372.54469593,0.00025753,3]
[329540160,1718422302500,-500.0,0.00025753,3]
[329540161,1718422302538,-500.0,0.00025753,3]
[329540162,1718422302582,-1689.02,0.00025753,3]
[329540163,1718422302602,-500.0,0.00025753,3]
[329540164,1718422302643,-544.26,0.00025753,3]
[329540165,1718422302671,-223.411005,0.00025753,3]
[329540166,1718422302697,-500.0,0.00025753,3]
[329540167,1718422302744,-1062.12,0.00025753,3]
[329540168,1718422302766,-1798.46,0.00025753,3]
[329540169,1718422302789,-6430.71,0.00025753,3]
[329540170,1718422302804,-500.0,0.00025753,3]
[329540171,1718422302844,-500.0,0.00025753,3]
[329540172,1718422302864,-500.0,0.00025753,3]
[329540173,1718422302899,-500.0,0.00025753,3]
[329540174,1718422302918,-500.0,0.00025753,3]
[329540175,1718422302948,-769.63,0.00025753,3]
[329540176,1718422302988,-706.02,0.00025753,3]
[329540177,1718422303039,-1384.1,0.00025753,3]
[329540178,1718422303078,-500.0,0.00025753,3]
[329540179,1718422303106,-500.0,0.00025753,3]
[329540180,1718422303123,-500.0,0.00025753,3]
[329540181,1718422303139,-550.5,0.00025753,3]
[329540182,1718422303164,-500.0,0.00025753,3]
[329540183,1718422303190,-337.56886854,0.00025753,3]
[329540184,1718422303202,-573.92,0.00025753,3]
[329540185,1718422303217,-500.0,0.00025753,3]
[329540186,1718422303230,-660.95,0.00025753,3]
[329540187,1718422303249,-500.0,0.00025753,3]
[329540188,1718422303267,-179.481945,0.00025753,2]
[329540189,1718422303279,-150.0,0.00025759,2]
[329540190,1718422303297,-2258.0,0.00025777,2]
[329540191,1718422303313,-152.41239157,0.0002578,2]
[329540192,1718422303341,-613.3174936,0.00025791,2]
[329540193,1718422303359,-199.94,0.000258,2]
[329540194,1718422303392,-200.0,0.00025818,15]
[329540195,1718422303408,-500.0,0.00025818,2]
[329540196,1718422303422,-200.0,0.00025818,2]
[329540197,1718422303435,-155.57352554,0.0002583,2]
[329540198,1718422303447,-153.68492921,0.00025855,2]
[329540199,1718422303468,-603.15,0.00025863,2]
[329540200,1718422303489,-1642.13,0.00025863,2]
[329540201,1718422303513,-291.28944,0.00025875,2]
[329540202,1718422303536,-554.855379,0.00025875,2]
[329540203,1718422303562,-418.75057,0.00025875,2]
[329540204,1718422303575,-232.45683,0.00025875,2]
[329540205,1718422303595,-324.925224,0.00025875,2]
[329540206,1718422303617,-1430.506439,0.00025875,2]
[329540207,1718422303628,-487.387838,0.00025875,2]
[329540208,1718422303639,-424.774087,0.00025875,2]
[329540209,1718422303650,-518.21223359,0.0002589,2]
[329540210,1718422303661,-183.47,0.0002589,2]
[329540211,1718422303677,-165.66,0.000259,2]
[329540212,1718422303701,-150.01731265,0.00025907,2]
[329540213,1718422303713,-258.85803751,0.00025929,2]
[329540214,1718422303725,-155.7088125,0.00025932,2]
[329540215,1718422303760,-155.3893803,0.00025932,2]
[329540216,1718422303772,-165.82648826,0.00025941,2]
[329540217,1718422303828,-153.68492921,0.00025964,2]
[329540218,1718422303842,-151.0,0.0002597,7]
[329540219,1718422303855,-504.85141881,0.00025976,2]
[329540220,1718422303868,-613.3174936,0.00025977,2]
[329540221,1718422303895,-266.88906681,0.00025984,2]
[329540222,1718422303907,-9315.36432546,0.00026,4]
[329540223,1718422303925,-2000.0,0.00026,2]
[329540224,1718422303949,-153.68492921,0.00026024,2]
[329540225,1718422303965,-528.37,0.00026027,3]
[329540226,1718422303985,-500.0,0.00026027,3]
[329540227,1718422304006,-500.0,0.00026027,3]
[329540228,1718422304028,-500.0,0.00026027,3]
[329540229,1718422304046,-991.82,0.00026027,3]
[329540230,1718422304062,-510.9,0.00026027,3]
[329540231,1718422304075,-500.0,0.00026027,3]
[329540232,1718422304092,-500.0,0.00026027,3]
[329540233,1718422304113,-610.67,0.00026027,3]
[329540234,1718422304127,-500.0,0.00026027,3]
[329540235,1718422304156,-500.0,0.00026027,3]
[329540236,1718422304176,-666.98,0.00026027,3]
[329540237,1718422304189,-500.0,0.00026027,3]
[329540238,1718422304215,-551.87,0.00026027,3]
[329540239,1718422304236,-500.0,0.00026027,3]
[329540240,1718422304249,-611.68,0.00026027,3]
[329540241,1718422304262,-500.0,0.00026027,3]
[329540242,1718422304272,-1146.01,0.00026027,3]
[329540243,1718422304321,-2401.32,0.00026027,3]
[329540244,1718422304336,-500.0,0.00026027,3]
[329540245,1718422304348,-500.0,0.00026027,3]
[329540246,1718422304362,-997.37,0.00026027,3]
[329540247,1718422304374,-1854.19,0.00026027,3]
[329540248,1718422304392,-500.0,0.00026027,3]
[329540249,1718422304405,-1801.0,0.00026027,3]
[329540250,1718422304435,-1043.52,0.00026027,3]
[329540251,1718422304460,-500.0,0.00026027,3]
[329540252,1718422304483,-1221.78,0.00026027,3]
[329540253,1718422304494,-652.52,0.00026027,3]
[329540254,1718422304507,-691.66,0.00026027,3]
[329540255,1718422304520,-608.39,0.00026027,3]
[329540256,1718422304537,-811.04,0.00026027,3]
[329540257,1718422304555,-592.9,0.00026027,3]
[329540258,1718422304577,-500.0,0.00026027,3]
[329540259,1718422304596,-541.05052436,0.00026027,3]
[329540260,1718422304628,-1689.02,0.00026027,3]
[329540261,1718422304645,-500.0,0.00026027,3]
[329540262,1718422304656,-544.26,0.00026027,3]
[329540263,1718422304667,-1062.12,0.00026027,3]
[329540264,1718422304678,-1798.46,0.00026027,3]
[329540265,1718422304692,-6430.71,0.00026027,3]
[329540266,1718422304706,-500.0,0.00026027,3]
[329540267,1718422304748,-500.0,0.00026027,3]
[329540268,1718422304767,-500.0,0.00026027,3]
[329540269,1718422304785,-500.0,0.00026027,3]
[329540270,1718422304819,-500.0,0.00026027,3]
[329540271,1718422304843,-769.63,0.00026027,3]
[329540272,1718422304870,-706.02,0.00026027,3]
[329540273,1718422304882,-1384.1,0.00026027,3]
[329540274,1718422304897,-245.4,0.00026027,3]
[329540275,1718422304910,-500.0,0.00026027,3]
[329540276,1718422304923,-500.0,0.00026027,3]
[329540277,1718422304938,-550.5,0.00026027,3]
[329540278,1718422304966,-499.14,0.00026027,3]
[329540279,1718422304979,-573.92,0.00026027,3]
[329540280,1718422304992,-500.0,0.00026027,3]
[329540281,1718422305013,-660.95,0.00026027,3]
[329540282,1718422305029,-500.0,0.00026027,3]
[329540283,1718422305058,-150.0,0.00026032,2]
[329540284,1718422305074,-266.88906681,0.0002604,2]
[329540285,1718422305106,-152.41239157,0.00026062,2]
[329540286,1718422305122,-393.43406916,0.00026063,2]
[329540287,1718422305140,-4061.19772208,0.00026063,2]
[329540288,1718422305152,-330.58658636,0.00026071,2]
[329540289,1718422305184,-150.0,0.00026073,2]
[329540290,1718422305201,-156.08009643,0.00026085,2]
[329540291,1718422305218,-258.85803751,0.00026092,2]
[329540292,1718422305241,-504.85141881,0.00026094,2]
[329540293,1718422305255,-164.26285836,0.00026096,2]
[329540294,1718422305267,-419.18,0.000261,2]
[329540295,1718422305279,-438.39972,0.000261,2]
[329540296,1718422305303,-504.85141881,0.00026128,2]
[329540297,1718422305341,-423.1,0.00026137,2]
[329540298,1718422305354,-150.0,0.00026137,2]
[329540299,1718422305375,-712.51,0.00026137,2]
[329540300,1718422305392,-526.95,0.00026137,2]
[329540301,1718422305405,-150.0,0.00026137,2]
[329540302,1718422305418,-526.95,0.00026137,2]
[329540303,1718422305431,-150.0,0.00026137,2]
[329540304,1718422305447,-423.1,0.00026137,2]
[329540305,1718422305468,-150.0,0.00026137,2]
[329540306,1718422305481,-526.95,0.00026137,2]
[329540307,1718422305515,-150.0,0.00026137,2]
[329540308,1718422305529,-150.0,0.00026137,2]
[329540309,1718422305541,-150.0,0.00026137,2]
[329540310,1718422305554,-150.0,0.00026137,2]
[329540311,1718422305565,-150.0,0.00026137,2]
[329540312,1718422305578,-150.0,0.00026137,2]
[329540313,1718422305589,-150.0,0.00026137,2]
[329540314,1718422305605,-305.13,0.00026137,2]
[329540315,1718422305624,-1616.64125828,0.00026144,2]
[329540316,1718422305639,-1581.87079265,0.00026144,2]
[329540317,1718422305651,-3537.365,0.00026145,2]
[329540318,1718422305664,-6824.48538974,0.00026148,2]
[329540319,1718422305679,-258.85803751,0.00026155,2]
[329540320,1718422305702,-154.66346707,0.00026155,2]
[329540321,1718422305717,-165.82648826,0.00026165,2]
[329540322,1718422305727,-150.0,0.00026166,2]
[329540323,1718422305740,-762.20362098,0.00026182,2]
[329540324,1718422305752,-291.28944,0.00026194,2]
[329540325,1718422305772,-554.855379,0.00026194,2]
[329540326,1718422305783,-418.75057,0.00026194,2]
[329540327,1718422305793,-232.45683,0.00026194,2]
[329540328,1718422305805,-324.925224,0.00026194,2]
[329540329,1718422305818,-1430.506439,0.00026194,2]
[329540330,1718422305835,-487.387838,0.00026194,2]
[329540331,1718422305850,-424.774087,0.00026194,2]
[329540332,1718422305864,-151.0,0.00026198,2]
[329540333,1718422305875,-1409.0,0.000262,2]
[329540334,1718422305886,-150.0,0.00026208,2]
[329540335,1718422305897,-150.0,0.00026208,2]
[329540336,1718422305908,-150.0,0.00026246,2]
[329540337,1718422305919,-150.0,0.00026273,2]
[329540338,1718422305930,-150.0,0.00026278,2]
[329540339,1718422305957,-258.85803751,0.00026291,2]
[329540340,1718422306028,-528.37,0.00026301,3]
[329540341,1718422306039,-500.0,0.00026301,3]
[329540342,1718422306054,-500.0,0.00026301,3]
[329540343,1718422306065,-500.0,0.00026301,3]
[329540344,1718422306077,-991.82,0.00026301,3]
[329540345,1718422306088,-510.9,0.00026301,3]
[329540346,1718422306101,-500.0,0.00026301,3]
[329540347,1718422306112,-579.06814684,0.00026301,3]
[329540348,1718422306125,-610.67,0.00026301,3]
[329540349,1718422306138,-500.0,0.00026301,3]
[329540350,1718422306157,-500.0,0.00026301,3]
[329540351,1718422306168,-666.98,0.00026301,3]
[329540352,1718422306179,-500.0,0.00026301,3]
[329540353,1718422306206,-551.87,0.00026301,3]
[329540354,1718422306221,-197.60589933,0.00026301,3]
[329540355,1718422306239,-611.68,0.00026301,3]